bitfinex-derivatives/quotes_SOLF0:USTF0_20240818
["timestamp","ask_amount","ask_price","bid_price","bid_amount"]
[1723993625234,8.29463945,144.95,144.94,7.42]
[1723993626138,4.84603945,144.95,144.94,7.42]
[1723993626533,0.04603945,144.95,144.94,10.8688]
[1723993627038,0.04603945,144.95,144.94,7.42]
[1723993628641,0.04603945,144.95,144.93,0.04635465]
[1723993629237,3.4488,144.94,144.93,0.04635465]
[1723993633040,8.83293945,144.95,144.88,7.42]
[1723993633241,8.7869,144.95,144.88,7.42]
[1723993633540,8.7869,144.95,144.88,10.8702]
[1723993633740,8.7869,144.95,144.88,3.4502]
[1723993633939,3.4495,144.92,144.89,7.42]
[1723993634244,3.4495,144.92,144.9,0.04745735]
[1723993634445,3.4495,144.92,144.9,7.46745735]
[1723993635345,8.29614966,144.93,144.91,7.42]
[1723993636539,4.84684966,144.93,144.91,7.42]
[1723993636844,4.84684966,144.93,144.91,10.8695]
[1723993637044,0.04684966,144.93,144.91,10.8695]
[1723993638545,0.04684966,144.93,144.91,7.42]
[1723993639937,0.04684966,144.93,144.9,0.04745735]
[1723993641142,3.4493,144.92,144.9,7.46745735]
[1723993642149,3.4493,144.92,144.9,10.91725735]
[1723993642340,3.49604966,144.93,144.91,7.42]
[1723993642546,0.04684966,144.93,144.92,7.42]
[1723993643352,0.04684966,144.93,144.92,10.8693]
[1723993643849,0.04684966,144.93,144.92,7.42]
[1723993644750,0.04684966,144.93,144.9,3.49715735]
[1723993644949,0.04684966,144.93,144.91,7.42]
[1723993645452,0.04684966,144.93,144.91,10.8694]
[1723993647054,3.49604966,144.93,144.91,7.42]
[1723993648151,0.04684966,144.93,144.9,0.04745735]
[1723993648855,3.4496,144.91,144.9,0.04745735]
[1723993649847,8.2296,144.91,144.9,0.04745735]
[1723993650054,3.4502,144.89,144.86,12.1211]
[1723993650653,3.4508,144.86,144.83,3.4513]
[1723993650854,3.4508,144.86,144.84,7.42]
[1723993651058,0.05042821,144.86,144.84,7.42]
[1723993651259,0.05042821,144.86,144.84,10.8711]
[1723993651754,0.05042821,144.86,144.85,7.42]
[1723993652558,0.05042821,144.86,144.84,21.9911]
[1723993653653,0.05042821,144.86,144.85,3.451]
[1723993653955,0.05042821,144.86,144.85,21.991]
[1723993654161,3.4502,144.89,144.86,3.4507]
[1723993655157,3.49644183,144.89,144.86,3.49680174]
[1723993656659,0.04624183,144.89,144.87,18.54]
[1723993657054,0.04624183,144.89,144.88,3.4503]
[1723993657254,0.04624183,144.89,144.87,18.54]
[1723993657454,0.04624183,144.89,144.86,0.04610174]
[1723993658658,3.49644183,144.89,144.86,3.49680174]
[1723993659956,0.04624183,144.89,144.86,3.49680174]
[1723993660553,3.49624183,144.89,144.86,22.03680174]
[1723993660959,0.04624183,144.89,144.86,22.03680174]
[1723993661254,0.04624183,144.89,144.87,3.4504]
[1723993663857,0.04624183,144.89,144.86,18.58610174]
[1723993664057,0.04624183,144.89,144.86,0.04610174]
[1723993665058,3.4503,144.88,144.86,0.04610174]
[1723993665455,0.04624183,144.89,144.86,0.04610174]
[1723993665863,3.49644183,144.89,144.86,0.04610174]
[1723993666255,0.04624183,144.89,144.86,0.04610174]
[1723993666463,0.04624183,144.89,144.86,18.58610174]
[1723993667764,0.04624183,144.89,144.88,3.4503]
[1723993669158,0.04624183,144.89,144.87,3.4504]
[1723993669868,0.04624183,144.89,144.88,3.4503]
[1723993670960,0.04624183,144.89,144.86,0.04610174]
[1723993672360,0.04624183,144.89,144.86,3.49680174]
[1723993674469,0.04624183,144.89,144.87,7.41]
[1723993674771,0.04624183,144.89,144.87,3.4505]
[1723993675072,0.04624183,144.89,144.87,10.8605]
[1723993675466,0.04624183,144.89,144.88,10.8603]
[1723993675667,4.72,144.91,144.88,7.41]
[1723993675865,3.4493,144.93,144.9,7.41]
[1723993676265,4.72,144.94,144.9,7.41]
[1723993676466,8.169,144.94,144.9,10.8596]
[1723993676766,0.05049955,144.93,144.91,0.04492741]
[1723993678366,0.05049955,144.93,144.91,3.49442741]
[1723993678574,0.05049955,144.93,144.92,7.41]
[1723993678967,0.05049955,144.93,144.92,10.8593]
[1723993679174,1.2835,144.97,144.92,7.41]
[1723993679373,1.2835,144.97,144.94,7.41]
[1723993679879,4.72,144.98,144.94,7.41]
[1723993680077,4.72,144.99,144.96,7.41]
[1723993680276,0.04818606,144.97,144.95,7.4608505]
[1723993680476,0.04818606,144.97,144.95,7.41]
[1723993680678,0.04818606,144.97,144.95,7.4627334]
[1723993681274,3.4484,144.96,144.95,0.0527334]
[1723993684382,3.4494,144.92,144.87,19.8875]
[1723993684581,18.55,144.96,144.87,19.8875]
[1723993684775,4.72,144.94,144.87,19.8875]
[1723993685584,0.04904278,144.92,144.89,0.04496379]
[1723993687375,3.49834278,144.92,144.89,3.49486379]
[1723993687778,0.04904278,144.92,144.89,3.49486379]
[1723993689485,0.04904278,144.92,144.89,0.04496379]
[1723993689882,3.4497,144.91,144.89,0.04496379]
[1723993691175,0.04904278,144.92,144.89,0.04496379]
[1723993691874,3.4498,144.9,144.89,0.04496379]
[1723993694187,1.314,144.91,144.83,19.8492]
[1723993694488,1.314,144.91,144.86,22.0006]
[1723993694684,3.4502,144.89,144.86,22.0006]
[1723993695388,3.50061471,144.89,144.86,22.0448047]
[1723993702600,3.50061471,144.89,144.86,0.0442047]
[1723993702990,0.05041471,144.89,144.86,0.0442047]
[1723993703498,3.4505,144.87,144.86,0.0442047]
[1723993705496,0.05041471,144.89,144.86,0.0442047]
[1723993706001,0.05041471,144.89,144.86,18.5942047]
[1723993706300,65.07445285,145.02,144.86,18.5942047]
[1723993706301,39.26,144.98,144.88,18.55]
[1723993706502,39.26,144.98,144.86,0.0442047]
[1723993706503,8.6639,144.96,144.9,7.42]
[1723993706700,3.4493,144.92,144.9,7.42]
[1723993707296,3.49881176,144.92,144.9,7.47188534]
[1723993707494,3.4496,144.91,144.9,0.05188534]
[1723993714807,8.11901176,144.92,144.9,0.05188534]
[1723993715192,4.66951176,144.92,144.9,0.05188534]
[1723993715400,3.4496,144.91,144.9,0.05188534]
[1723993717201,3.4502,144.89,144.78,56.44266654]
[1723993717497,4.62,144.92,144.86,18.55]
[1723993717700,4.62,144.92,144.87,3.4503]
[1723993717903,3.4497,144.91,144.87,3.4503]
[1723993718507,0.04662565,144.9,144.88,0.04506714]
[1723993719300,3.49662565,144.9,144.88,0.04506714]
[1723993724299,0.04662565,144.9,144.88,3.49516714]
[1723993724599,0.04662565,144.9,144.88,0.04506714]
[1723993724796,3.49642565,144.9,144.88,0.04506714]
[1723993725704,0.04662565,144.9,144.88,0.04506714]
[1723993726618,0.04662565,144.9,144.88,22.04526714]
[1723993728910,0.04662565,144.9,144.89,3.45]
[1723993730704,0.04662565,144.9,144.88,3.49526714]
[1723993731006,0.04662565,144.9,144.88,0.04506714]
[1723993732803,3.49642565,144.9,144.88,0.04506714]
[1723993735306,0.04662565,144.9,144.88,0.04506714]
[1723993736711,3.45,144.89,144.88,0.04506714]
[1723993736904,0.04662565,144.9,144.88,0.04506714]
[1723993737304,3.49642565,144.9,144.88,0.04506714]
[1723993737505,0.04662565,144.9,144.88,3.49536714]
[1723993738410,0.04662565,144.9,144.88,0.04506714]
[1723993739907,0.04662565,144.9,144.88,18.57506714]
[1723993740308,0.04662565,144.9,144.89,3.45]
[1723993743408,1.238,144.98,144.89,1.26702067]
[1723993743721,5.778,144.98,144.92,18.53]
[1723993744110,4.8062,144.96,144.92,21.9791]
[1723993744413,0.05298353,144.95,144.93,0.04858411]
[1723993745719,0.05298353,144.95,144.93,3.49758411]
[1723993746711,0.05298353,144.95,144.93,0.04858411]
[1723993748814,3.50168353,144.95,144.93,0.04858411]
[1723993749012,0.05298353,144.95,144.93,0.04858411]
[1723993749520,3.4488,144.94,144.93,0.04858411]
[1723993755010,15.3688,144.94,144.93,0.04858411]
[1723993755213,3.4494,144.92,144.89,3.45]
[1723993755619,11.92,144.94,144.85,1.2687]
[1723993755620,7.42,144.91,144.85,1.2687]
[1723993755816,7.42,144.91,144.85,8.6887]
[1723993756317,0.05294555,144.89,144.87,0.04996751]
[1723993757516,3.50294555,144.89,144.87,0.04996751]
[1723993758123,0.05294555,144.89,144.87,0.04996751]
[1723993758323,3.4503,144.88,144.87,0.04996751]
[1723993760827,3.4509,144.86,144.82,7.42]
[1723993761027,7.42,144.89,144.82,7.42]
[1723993761325,4.5,144.88,144.82,10.8715]
[1723993761514,3.4509,144.86,144.83,7.42]
[1723993761714,3.4509,144.86,144.83,10.8713]
[1723993761927,3.49549534,144.86,144.83,10.8713]
[1723993764529,0.04459534,144.86,144.83,10.8713]
[1723993766029,0.04459534,144.86,144.83,7.42]
[1723993766629,3.49549534,144.86,144.83,7.42]
[1723993767926,3.49549534,144.86,144.83,10.8714]
[1723993768135,0.04459534,144.86,144.85,7.42]
[1723993769324,0.04459534,144.86,144.85,10.871]
[1723993769723,7.9499,144.9,144.87,3.4505]
[1723993769925,7.9499,144.9,144.88,7.42]
[1723993770125,3.4499,144.9,144.88,7.42]
[1723993770931,3.49475858,144.9,144.88,7.46826111]
[1723993771132,3.49475858,144.9,144.88,0.04826111]
[1723993773831,3.49475858,144.9,144.88,7.46826111]
[1723993773832,0.04485858,144.9,144.88,7.46826111]
[1723993774431,0.04485858,144.9,144.89,10.87]
[1723993777334,5.7705,144.94,144.91,7.42]
[1723993778029,1.2705,144.94,144.91,7.42]
[1723993778238,1.31621072,144.94,144.91,7.46750831]
[1723993778839,4.76511072,144.94,144.91,10.91690831]
[1723993779541,4.76511072,144.94,144.91,0.04750831]
[1723993779941,3.4491,144.93,144.91,0.04750831]
[1723993781947,1.31621072,144.94,144.91,0.04750831]
[1723993781948,4.76521072,144.94,144.91,0.04750831]
[1723993783042,1.31621072,144.94,144.91,0.04750831]
[1723993783742,3.4491,144.93,144.91,0.04750831]
[1723993784136,3.4493,144.92,144.91,0.04750831]
[1723993791559,3.4498,144.91,144.86,1.2835]
[1723993791758,11.92,144.93,144.87,7.42]
[1723993792255,11.92,144.93,144.86,1.2835]
[1723993792458,7.42,144.92,144.86,7.42]
[1723993792652,0.05169509,144.9,144.88,0.04807755]
[1723993793659,0.05169509,144.9,144.88,3.49837755]
[1723993793956,0.05169509,144.9,144.88,0.04807755]
[1723993795653,3.45,144.89,144.88,0.04807755]
[1723993795862,0.05169509,144.9,144.88,0.04807755]
[1723993796859,3.50169509,144.9,144.88,0.04807755]
[1723993803965,0.05169509,144.9,144.88,7.46807755]
[1723993804469,3.50149509,144.9,144.88,7.46807755]
[1723993805275,0.05169509,144.9,144.88,7.46807755]
[1723993806666,0.05169509,144.9,144.88,10.91827755]
[1723993806866,0.05169509,144.9,144.89,7.42]
[1723993809376,0.05169509,144.9,144.88,10.91827755]
[1723993809874,0.05169509,144.9,144.88,0.04807755]
[1723993810464,3.45,144.89,144.88,0.04807755]
[1723993810977,3.50159509,144.9,144.88,0.04807755]
[1723993811572,3.45,144.89,144.88,0.04807755]
[1723993814580,0.05169509,144.9,144.88,7.46807755]
[1723993815477,0.05169509,144.9,144.88,10.91817755]
[1723993817784,0.05169509,144.9,144.88,7.46807755]
[1723993818782,0.05169509,144.9,144.88,10.91827755]
[1723993820777,6.8928,145.05,144.88,7.46807755]
[1723993820980,5.8054,144.98,144.93,7.42]
[1723993821386,3.4485,144.96,144.93,7.42]
[1723993821976,3.49811552,144.96,144.93,7.46495324]
[1723993822783,3.49811552,144.96,144.93,0.04495324]
[1723993823689,3.49811552,144.96,144.93,3.49405324]
[1723993824285,0.04961552,144.96,144.93,0.04495324]
[1723993824488,3.4488,144.95,144.93,0.04495324]
[1723993824695,0.04961552,144.96,144.93,0.04495324]
[1723993825084,3.49811552,144.96,144.93,3.49405324]
[1723993825785,0.04961552,144.96,144.93,7.46495324]
[1723993826992,0.04961552,144.96,144.94,7.42]
[1723993827592,0.04961552,144.96,144.95,3.4486]
[1723993827795,4.5,145.0,144.94,7.42]
[1723993827991,4.5,145.0,144.97,7.42]
[1723993828996,4.55201888,145.0,144.97,7.47001736]
[1723993829291,3.4477,144.99,144.97,7.47001736]
[1723993830890,3.4477,144.99,144.97,0.05001736]
[1723993834293,4.55201888,145.0,144.97,0.05001736]
[1723993834294,3.4479,144.98,144.97,0.05001736]
[1723993840701,3.4479,144.98,144.97,7.47001736]
[1723993841101,3.4477,144.99,144.97,7.47001736]
[1723993841796,0.05201888,145.0,144.98,7.42]
[1723993842096,4.5,145.05,144.99,29.68]
[1723993842294,4.5,145.05,145.03,7.42]
[1723993842890,3.4466,145.04,145.03,7.42]
[1723993843094,3.4466,145.04,145.03,7.46363287]
[1723993843904,3.4466,145.04,145.03,0.04363287]
[1723993844699,4.5518892,145.05,145.03,0.04363287]
[1723993844700,7.9981892,145.05,145.03,0.04363287]
[1723993844898,3.4981892,145.05,145.03,0.04363287]
[1723993845101,0.0518892,145.05,145.03,0.04363287]
[1723993846793,3.4465,145.04,145.03,0.04363287]
[1723993847796,3.4980892,145.05,145.03,0.04363287]
[1723993847999,3.4980892,145.05,145.04,7.42]
[1723993848901,3.4980892,145.05,145.03,0.04363287]
[1723993849306,3.4465,145.04,145.03,0.04363287]
[1723993856102,3.4981892,145.05,145.03,0.04363287]
[1723993856302,3.4981892,145.05,145.03,7.46363287]
[1723993858114,3.4465,145.04,145.03,0.04363287]
[1723993865014,3.4465,145.04,145.03,7.46363287]
[1723993865615,3.4981892,145.05,145.03,7.46363287]
[1723993865915,3.4981892,145.05,145.04,7.42]
[1723993869916,3.4465,145.04,145.03,0.04363287]
[1723993877229,3.4981892,145.05,145.03,7.46363287]
[1723993877523,0.0518892,145.05,145.03,7.46363287]
[1723993878817,0.0518892,145.05,145.03,10.91023287]
[1723993882131,0.0518892,145.05,145.04,3.4465]
[1723993887534,1.2794,145.09,145.06,3.4459]
[1723993887837,4.48,145.11,145.06,10.8659]
[1723993888239,3.4455,145.09,145.06,10.8659]
[1723993888538,3.4455,145.09,145.08,7.42]
[1723993888739,3.4945525,145.09,145.08,7.42]
[1723993890039,1.2696,145.14,145.08,7.42]
[1723993890233,5.7496,145.14,145.1,7.42]
[1723993890938,3.4447,145.12,145.1,7.42]
[1723993891239,3.49517413,145.12,145.1,7.46845135]
[1723993893037,3.4448,145.11,145.1,7.46845135]
[1723993893942,3.4448,145.11,145.1,0.04845135]
[1723993900536,7.42,145.11,145.02,5.8142]
[1723993900738,7.42,145.11,145.05,7.42]
[1723993901039,4.48,145.1,145.05,7.42]
[1723993901239,4.48,145.1,145.06,7.42]
[1723993901846,0.04979978,145.09,145.07,0.04868915]
[1723993902143,3.446,145.06,145.05,7.42]
[1723993904744,3.4458,145.07,145.05,7.42]
[1723993905145,1.41639978,145.09,145.06,7.42]
[1723993905346,3.4457,145.08,145.04,0.04498222]
[1723993905546,3.4457,145.08,145.07,7.42]
[1723993905748,4.86189978,145.09,145.07,7.42]
[1723993906548,3.4455,145.08,145.07,7.42]
[1723993906749,0.04979978,145.09,145.07,7.42]
[1723993907141,3.49519978,145.09,145.07,7.42]
[1723993908346,0.04979978,145.09,145.07,10.8657]
[1723993909440,34.98,145.19,145.07,37.1]
[1723993909647,14.32905236,145.16,145.12,7.42]
[1723993909842,4.28105788,145.15,145.12,7.42]
[1723993910049,3.4443,145.13,145.12,7.42]
[1723993920453,3.4446,145.12,145.11,7.46685832]
[1723993921753,3.4444,145.13,145.11,7.46685832]
[1723993921950,3.4444,145.13,145.12,7.42]
[1723993923257,3.4446,145.12,145.11,7.46685832]
[1723993923654,0.04894141,145.14,145.11,7.46685832]
[1723993923846,3.4446,145.12,145.11,7.46685832]
[1723993925959,0.04894141,145.14,145.11,7.46685832]
[1723993926150,0.04894141,145.14,145.13,7.42]
[1723993934958,0.04894141,145.14,145.12,7.42]
[1723993935463,3.49314141,145.14,145.12,7.42]
[1723993936261,0.04894141,145.14,145.13,7.42]
[1723993939470,3.49304141,145.14,145.13,7.42]
[1723993942773,3.49304141,145.14,145.11,0.04685832]
[1723993942774,3.4446,145.12,145.11,0.04685832]
[1723993943274,3.4446,145.12,145.11,7.46685832]
[1723993944771,3.4446,145.12,145.11,0.04685832]
[1723993945874,15.46868693,145.14,145.07,7.42]
[1723993946070,15.41974552,145.14,145.07,7.42]
[1723993946377,7.42,145.12,145.07,7.42]
[1723993946767,3.4454,145.09,145.08,0.04382823]
[1723993956180,3.4454,145.09,145.08,7.46382823]
[1723993956971,0.04702985,145.11,145.08,7.46382823]
[1723993957175,0.04702985,145.11,145.1,7.42]
[1723993957577,3.50449738,145.22,145.1,7.42]
[1723993957779,4.48,145.18,145.16,7.42]
[1723993957978,3.4434,145.17,145.16,7.42]
[1723993958172,5.7895,145.19,145.15,7.42]
[1723993958377,5.7895,145.19,145.16,7.42]
[1723993958883,5.83968129,145.19,145.16,7.4654901]
[1723993959476,3.4434,145.17,145.16,7.4654901]
[1723993965386,3.4432,145.18,145.16,7.4654901]
[1723993965588,3.4432,145.18,145.17,7.42]
[1723993967493,3.49318129,145.19,145.17,7.42]
[1723993969186,0.05018129,145.19,145.17,7.42]
[1723993969690,3.4431,145.18,145.17,7.42]
[1723993969887,0.05018129,145.19,145.16,0.0454901]
[1723993970387,3.4434,145.17,145.16,0.0454901]
[1723993972789,0.05018129,145.19,145.16,0.0454901]
[1723993972988,0.05018129,145.19,145.18,7.42]
[1723993973793,3.49308129,145.19,145.18,7.42]
[1723993979288,3.4434,145.17,145.16,0.0454901]
[1723993980587,3.4434,145.17,145.16,7.4654901]
[1723993984197,3.4434,145.17,145.16,0.0454901]
[1723993986904,3.4443,145.13,145.12,7.42]
[1723993988816,3.49193482,145.14,145.12,7.42]
[1723993989114,3.49193482,145.14,145.11,0.05080613]
[1723993989115,3.49193482,145.14,145.13,7.42]
[1723993994220,0.04773482,145.14,145.11,7.47080613]
[1723993994420,7.46773482,145.14,145.11,0.05080613]
[1723993994819,1.3046,145.13,145.11,0.05080613]
[1723993996023,3.4446,145.12,145.11,0.05080613]
[1723994002131,3.4456,145.08,145.06,8.7338]
[1723994003230,3.49434197,145.08,145.06,8.77836448]
[1723994003927,0.04874197,145.08,144.95,73.08815695]
[1723994004135,11.88,145.1,145.02,7.42]
[1723994004336,3.4464,145.05,145.02,7.42]
[1723994005034,3.49015135,145.05,145.02,10.91909772]
[1723994005436,3.4465,145.04,145.03,7.42]
[1723994007136,3.49015135,145.05,145.03,7.42]
[1723994009039,0.04375135,145.05,145.03,7.42]
[1723994009831,0.04375135,145.05,145.04,3.4465]
[1723994010035,0.04375135,145.05,145.03,7.42]
[1723994012942,3.4465,145.04,145.03,7.42]
[1723994014045,3.49005135,145.05,145.03,7.42]
[1723994014343,0.04375135,145.05,145.03,7.42]
[1723994015442,3.4465,145.04,145.03,7.42]
[1723994016737,3.49005135,145.05,145.03,7.42]
[1723994019543,3.4465,145.04,145.03,7.42]
[1723994021244,3.4465,145.04,145.02,7.47229772]
[1723994021850,0.04375135,145.05,145.02,0.05229772]
[1723994022443,3.4465,145.04,145.02,0.05229772]
[1723994025253,3.4467,145.03,145.02,0.05229772]
[1723994030947,3.4475,145.0,144.98,1.3385]
[1723994031150,3.4475,145.0,144.98,8.7585]
[1723994032255,3.49713959,145.0,144.98,1.38507921]
[1723994032555,3.49713959,145.0,144.98,8.80507921]
[1723994032754,3.49713959,145.0,144.98,7.46657921]
[1723994034549,3.4477,144.99,144.98,7.46657921]
[1723994034752,3.4477,144.99,144.98,0.04657921]
[1723994040656,3.4477,144.99,144.98,7.46657921]
[1723994041851,3.4477,144.99,144.98,0.04657921]
[1723994048260,7.95713959,145.0,144.98,0.04657921]
[1723994049259,4.50963959,145.0,144.98,0.04657921]
[1723994049461,0.04963959,145.0,144.99,7.42]
[1723994051965,0.04963959,145.0,144.99,10.8677]
[1723994052270,0.04963959,145.0,144.99,7.42]
[1723994062460,68.19466292,145.07,144.99,7.42]
[1723994062664,4.46,145.03,145.0,7.42]
[1723994062863,3.4464,145.05,145.01,3.447]
[1723994063070,4.46,145.06,145.03,7.42]
[1723994063673,4.51144786,145.06,145.03,7.4664515]
[1723994064973,3.4462,145.05,145.03,7.4664515]
[1723994065967,7.95744786,145.06,145.03,10.9131515]
[1723994066175,4.51144786,145.06,145.03,7.4664515]
[1723994066972,4.51144786,145.06,145.03,10.9130515]
[1723994068577,0.05144786,145.06,145.03,10.9130515]
[1723994069275,3.49744786,145.06,145.03,10.9130515]
[1723994072875,0.05144786,145.06,145.03,10.9130515]
[1723994073481,3.49744786,145.06,145.03,10.9130515]
[1723994074681,0.05144786,145.06,145.05,7.42]
[1723994076380,0.05144786,145.06,145.05,10.8662]
[1723994076577,3.4454,145.09,145.05,10.8662]
[1723994077077,7.9051,145.1,145.06,7.42]
[1723994077578,0.04912722,145.09,145.08,7.42]
[1723994079580,0.04912722,145.09,145.07,0.04745146]
[1723994079776,0.04912722,145.09,145.07,7.46745146]
[1723994079976,0.04912722,145.09,145.07,10.91305146]
[1723994081481,0.04912722,145.09,145.08,3.4455]
[1723994082169,0.04912722,145.09,145.08,10.8655]
[1723994086883,1.2804,145.13,145.1,3.445]
[1723994087095,1.2804,145.13,145.11,7.42]
[1723994088092,1.33165859,145.13,145.11,7.47019655]
[1723994088893,4.77615859,145.13,145.11,7.47019655]
[1723994090287,3.49575859,145.13,145.11,7.47019655]
[1723994094185,0.05125859,145.13,145.11,7.47019655]
[1723994094390,0.05125859,145.13,145.12,7.42]
[1723994094998,0.05125859,145.13,145.11,0.05019655]
[1723994095197,0.05125859,145.13,145.12,7.42]
[1723994097696,0.05125859,145.13,145.11,0.05019655]
[1723994098596,3.49575859,145.13,145.11,0.05019655]
[1723994100991,3.49575859,145.13,145.12,7.42]
[1723994101398,0.05125859,145.13,145.12,7.42]
[1723994104104,0.05125859,145.13,145.12,10.8646]
[1723994116410,3.4438,145.16,145.13,3.4442]
[1723994116609,3.4438,145.16,145.15,7.42]
[1723994117609,3.49666752,145.17,145.15,7.42]
[1723994117812,0.05316752,145.17,145.16,7.42]
[1723994118212,27.54,145.29,145.19,3.4427]
[1723994118418,5.811,145.25,145.22,7.42]
[1723994118812,1.371,145.25,145.22,7.42]
[1723994119310,1.371,145.25,145.24,7.42]
[1723994119517,1.41511097,145.25,145.24,7.42]
[1723994120813,4.85671097,145.25,145.22,0.04590322]
[1723994121109,4.85671097,145.25,145.22,7.46590322]
[1723994121315,1.41511097,145.25,145.24,7.42]
[1723994121516,4.85661097,145.25,145.24,7.42]
[1723994121707,4.85661097,145.25,145.22,7.46590322]
[1723994122514,3.4418,145.24,145.22,7.46590322]
[1723994122717,1.41511097,145.25,145.22,7.46590322]
[1723994123115,3.4417,145.24,145.22,7.46590322]
[1723994124612,3.4417,145.24,145.22,0.04590322]
[1723994125917,4.85671097,145.25,145.22,10.90800322]
[1723994126116,4.85671097,145.25,145.24,7.42]
[1723994127718,4.85671097,145.25,145.23,7.42]
[1723994129520,1.41511097,145.25,145.23,10.8619]
[1723994129719,0.04411097,145.25,145.24,7.42]
[1723994132519,0.04411097,145.25,145.23,7.42]
[1723994132825,0.04411097,145.25,145.22,0.04590322]
[1723994133121,3.4419,145.24,145.22,0.04590322]
[1723994133921,3.4419,145.24,145.23,7.42]
[1723994135213,0.04411097,145.25,145.23,7.42]
[1723994135214,3.48571097,145.25,145.23,7.42]
[1723994135927,3.4417,145.24,145.23,7.42]
[1723994137122,3.48561097,145.25,145.23,7.42]
[1723994139023,0.04411097,145.25,145.23,7.42]
[1723994139928,3.48561097,145.25,145.23,7.42]
[1723994140627,3.4417,145.24,145.23,7.42]
[1723994141830,3.48561097,145.25,145.23,7.42]
[1723994142832,3.4417,145.24,145.23,7.42]
[1723994143434,3.48571097,145.25,145.23,7.42]
[1723994143631,0.04411097,145.25,145.24,7.42]
[1723994145728,0.04411097,145.25,145.24,10.8617]
[1723994146038,0.04411097,145.25,145.24,7.42]
[1723994146532,3.4409,145.28,145.24,7.42]
[1723994146533,5.712,145.3,145.24,7.42]
[1723994146733,5.712,145.3,145.27,7.42]
[1723994147634,1.31766532,145.3,145.27,7.4723934]
[1723994147834,3.4406,145.29,145.27,7.4723934]
[1723994148232,3.4406,145.29,145.27,0.0523934]
[1723994148428,3.4406,145.29,145.27,7.4723934]
[1723994150427,4.75806532,145.3,145.27,7.4723934]
[1723994150628,1.31766532,145.3,145.28,7.42]
[1723994151134,4.44,145.33,145.28,7.42]
[1723994151329,4.44,145.33,145.3,7.42]
[1723994151838,7.8797,145.33,145.3,7.42]
[1723994152035,1.2795,145.35,145.32,7.42]
[1723994152339,1.32503474,145.35,145.32,7.46399175]
[1723994152535,3.4396,145.34,145.32,7.46399175]
[1723994160239,3.4396,145.33,145.32,0.04399175]
[1723994164450,3.4395,145.34,145.32,0.04399175]
[1723994165148,3.4395,145.34,145.32,7.46399175]
[1723994168454,3.4396,145.33,145.32,7.46399175]
[1723994168651,3.4396,145.33,145.32,0.04399175]
[1723994173565,7.42,145.33,145.22,1.2897]
[1723994173764,5.7271,145.32,145.27,7.42]
[1723994174062,3.4407,145.29,145.27,7.42]
[1723994174652,0.04711005,145.29,145.27,7.46855535]
[1723994174855,0.04711005,145.29,145.28,7.42]
[1723994175261,7.86,145.32,145.28,10.8608]
[1723994175463,3.44,145.32,145.31,7.42]
[1723994176058,3.4398,145.33,145.31,7.42]
[1723994176267,3.49212362,145.33,145.31,7.47117709]
[1723994179959,3.4398,145.32,145.31,7.47117709]
[1723994180354,0.05232362,145.33,145.31,7.47117709]
[1723994181568,0.05232362,145.33,145.31,10.91107709]
[1723994181758,0.05232362,145.33,145.31,7.47117709]
[1723994182162,4.42,145.35,145.32,3.4397]
[1723994182163,3.4392,145.35,145.32,3.4397]
[1723994182369,4.42,145.38,145.34,7.42]
[1723994183162,0.04550684,145.37,145.35,0.04564543]
[1723994184064,3.4389,145.36,145.35,0.04564543]
[1723994188369,3.4389,145.36,145.35,7.46564543]
[1723994189566,3.48420684,145.37,145.35,7.46564543]
[1723994189775,3.48420684,145.37,145.36,7.42]
[1723994190268,0.04550684,145.37,145.36,7.42]
[1723994191168,3.48410684,145.37,145.36,7.42]
[1723994191667,3.4381,145.4,145.36,14.84]
[1723994191872,1.2728,145.42,145.38,7.42]
[1723994192071,4.29520531,145.41,145.4,7.42]
[1723994192272,4.29520488,145.41,145.4,7.42]
[1723994193171,4.29529647,145.41,145.4,7.42]
[1723994193865,7.73309647,145.41,145.4,7.42]
[1723994194269,3.4379,145.4,145.39,0.04702628]